[Event "45th FIDE Olympiad 2024"]
[Site "Budapest"]
[Date "2024.09.11"]
[Round "1.116"]
[White "Pidluznij, Gleb"]
[Black "Soliz Gabarrete, Luis Fernando"]
[Result "1-0"]
[ECO "B10"]
[WhiteElo "2425"]
[BlackElo "1920"]
[Annotator "TA"]
[PlyCount "69"]
[EventDate "2024.09.05"]
[EventType "team-tourn"]
[EventCountry "HUN"]
[SourceTitle "playchess.com"]
[Source "ChessBase"]
[SourceQuality "1"]
[WhiteTeam "Lithuania"]
[BlackTeam "Honduras"]
[WhiteTeamCountry "LTU"]
[BlackTeamCountry "HON"]
[TimeControl "40/5400+30:1800+30"]

{[%evp 9,69,12,25,11,16,23,29,24,15,-5,0,-2,0,-35,-27,-36,-29,-63,-73,-82,0,0,0,0,0,0,0,0,0,0,460,470,661,502,631,502,485,339,592,0,481,450,626,630,710,527,712,709,696,690,771,766,825,817,869,868,1533,1540,1517,1489,1362,1244]} 1. e4 c6 2. Nf3 d5 3. d3 Bg4 4. h3 Bh5 5. Nbd2 {[%cal Bb1d2,Bd2e4,Be4g3][%mdl 32]} Nd7 6. d4 dxe4 7. Nxe4 Ngf6 8. Ng3 {White has an edge.} Bg6 9. Nh4 Qc7 10. Nxg6 hxg6 11. Be2 O-O-O 12. c3 e5 13. dxe5 Nxe5 14. Qa4 Nd3+ (14... Bc5 $17 {aiming for ...Nd3+.} 15. O-O Rhe8) 15. Bxd3 $11 Rxd3 16. Qxa7 Qe5+ 17. Ne2 $1 Nd5 {[#] Prevents Bf4. Hoping for ...Bd6.} 18. Qa8+ Kc7 {[%cal Of8b4] White must now prevent ...Bb4!} 19. Qa5+ Kc8 $2 {[%mdl 8192] White leaves nothing to chance now.} (19... Kd7 $1 $11 20. Qa8 Kc7 21. Qa5+ Kd7) 20. Bf4 $1 $18 Qe6 (20... Qf5 $142 21. Qa8+ Kd7 22. Qxb7+ Kd8) 21. Qa8+ Kd7 22. Qxb7+ Kd8 23. Qb8+ Kd7 $2 (23... Qc8 {might work better.} 24. Nd4 Qxb8 (24... Rxd4 $2 25. cxd4 Bb4+ 26. Kf1 $18) 25. Bxb8 (25. Nxc6+ Kc8 $18) 25... Kd7) 24. Qb7+ Kd8 25. Bg3 {White is clearly winning.} g5 {[#]} 26. O-O $1 Rh6 {[%cal Bh8h6,Bh6f6,Bf6f5][%mdl 32]} (26... Be7 27. Qa6) 27. Nd4 Qc8 28. Qxf7 Rf6 29. Qh5 c5 30. Qxg5 Qd7 31. Nf3 Rdxf3 32. gxf3 Kc8 33. Rad1 Rf5 34. Qg6 Bd6 35. Qxd6 {Weighted Error Value: White=0.77/Black=0.93.  Loses game:     	---       	Black=1      Mistake:       	---       	Black=3      Inaccurate:     	White=2     	Black=1      OK:         	White=3     	Black=5      Best:        	White=2     	Black=3      Strong:       	White=2     	---} 1-0

[Event "45th FIDE Olympiad 2024"]
[Site "Budapest"]
[Date "2024.09.11"]
[Round "1.117"]
[White "Andersen, Mads"]
[Black "Paiva, Donaldo"]
[Result "1-0"]
[ECO "B15"]
[WhiteElo "2598"]
[BlackElo "2139"]
[Annotator "TA"]
[PlyCount "63"]
[EventDate "2024.09.05"]
[EventType "team-tourn"]
[EventCountry "HUN"]
[SourceTitle "playchess.com"]
[Source "ChessBase"]
[SourceQuality "1"]
[WhiteTeam "Denmark"]
[BlackTeam "Mozambique"]
[WhiteTeamCountry "DEN"]
[BlackTeamCountry "MOZ"]
[TimeControl "40/5400+30:1800+30"]

{[%evp 10,63,34,9,10,19,33,13,19,15,36,18,34,0,16,12,29,22,56,31,56,13,26,11,37,43,44,22,41,53,284,262,277,279,285,268,278,290,297,279,323,309,332,335,424,404,447,412,627,634,1257,1235,1283,1329,1427,1125]} 1. e4 c6 2. d4 d5 3. Nc3 dxe4 4. Nxe4 Nf6 5. Nxf6+ exf6 6. Be3 Bd6 7. Bd3 O-O 8. Ne2 Re8 {The position is equal.} 9. O-O Nd7 {[%cal Bb8d7,Bd7f8,Bf8g6][%mdl 32]} 10. c4 Nf8 11. Qc2 Qc7 12. h3 Be6 13. Rad1 Rac8 14. Rfe1 Ng6 15. Nc3 Qd7 16. Bf1 Bf5 17. Qa4 {[%cal Od4d5]} Bb8 {Hoping for ...Nh4.} 18. d5 {next c5 is good for White.} Qd6 19. g3 (19. Bxa7 $2 Qh2#) 19... c5 $2 {[#] This costs Black the game.} (19... cxd5 $14 20. Bc5 (20. Rxd5 Qe6 $16) (20. cxd5 Ne5 $11) (20. Nxd5 Qc6 $14) 20... Qc6 21. Qxc6 (21. cxd5 $2 Qxa4 22. Nxa4 Bd7 $19) 21... bxc6) 20. Bxc5 $1 $18 {[%mdl 512]} Qd7 21. Rxe8+ (21. Bxa7 $2 Qxa4 (21... Bxh3 $2 22. Bxh3 Qxa4 23. Nxa4 $18) 22. Nxa4 Rxe1 (22... Bxa7 $2 23. Rxe8+ Rxe8 24. Nc3 $17) 23. Rxe1 Bxa7 $19) 21... Rxe8 22. Qxd7 (22. Bxa7 $2 {perishes.} Qxa4 (22... Bxh3 23. Bxh3 Qxa4 24. Nxa4 $18) 23. Nxa4 Bxa7 $17) 22... Bxd7 23. Bd4 h5 {[%cal Bh7h5,Bh5h4][%mdl 32]} 24. c5 {[%cal Bc4c5,Bc5c6,Bc6c7][%mdl 32]} Be5 25. b4 {[%cal Bb2b4,Bb4b5][%mdl 32]} ({Resist} 25. Bxe5 Nxe5 26. f4 Ng6 $18) 25... h4 26. Bxe5 fxe5 27. b5 hxg3 28. fxg3 Rd8 (28... Rc8 $142 29. c6 bxc6) 29. c6 {White is clearly winning.} Be8 30. c7 Rc8 31. d6 Bd7 32. Bg2 {Weighted Error Value: White=0.08 (flawless) /Black=0.43.  Loses game:     	---       	Black=1      Mistake:       	---       	Black=1      Inaccurate:     	White=2     	Black=3      OK:         	White=13    	Black=4      Best:        	White=2     	---        Brilliant:      	White=1     	---} 1-0

[Event "45th FIDE Olympiad 2024"]
[Site "Budapest"]
[Date "2024.09.11"]
[Round "1.118"]
[White "Andrade, Ivan"]
[Black "Thybo, Jesper Sondergaard"]
[Result "0-1"]
[ECO "C60"]
[WhiteElo "2132"]
[BlackElo "2555"]
[Annotator "TA"]
[PlyCount "99"]
[EventDate "2024.09.05"]
[EventType "team-tourn"]
[EventCountry "HUN"]
[SourceTitle "playchess.com"]
[Source "ChessBase"]
[SourceQuality "1"]
[WhiteTeam "Mozambique"]
[BlackTeam "Denmark"]
[WhiteTeamCountry "MOZ"]
[BlackTeamCountry "DEN"]
[TimeControl "40/5400+30:1800+30"]

{[%evp 9,99,19,16,15,12,0,0,-9,-9,-25,0,-20,-9,-47,-36,-51,-56,-56,-33,-43,-43,-41,-48,-35,-36,-50,-50,-58,-58,-56,-48,-56,-30,-36,-31,-37,-30,-52,-51,-45,-44,-25,-45,-95,-70,-132,-48,-56,-45,-126,-116,-148,-50,-158,-154,-154,-152,-152,-97,-85,-89,-87,-88,-87,-83,-131,-125,-131,-88,-104,-88,-97,-91,-484,-468,-521,-514,-647,-649,-560,-625,-707,-590,-881,-871,-897,-891,-869,-840,-1652,-1465,-1142]} 1. e4 e5 2. Nf3 Nc6 3. Bb5 g6 4. O-O Bg7 5. Re1 a6 6. Bxc6 dxc6 7. d3 c5 8. Bg5 {The position is equal.} Ne7 9. a4 a5 10. Na3 b6 11. Nc4 h6 12. Bh4 f6 13. Bg3 O-O 14. h3 Be6 15. Qe2 Qd7 16. b3 Rad8 17. Rad1 Nc6 18. c3 Rfe8 19. Qc2 Qf7 20. Nfd2 g5 21. Ne3 Rd7 22. Ndc4 Ne7 23. f3 Red8 24. Bh2 h5 25. g4 Bf8 26. Kf2 ({White should try} 26. Nf5 $15) 26... Ng6 27. Ke2 (27. Rh1 $15) 27... Qh7 (27... hxg4 $17 28. hxg4 Bxc4 29. Nxc4 Rb8) 28. Rh1 $15 Qh8 {And now ...Rh7 would win.} 29. Bg3 (29. Kf2 $15) 29... Rh7 30. Qb1 Rdd7 ({Black should play} 30... Nf4+ $17 31. Bxf4 exf4) 31. Rdg1 (31. Nf5 $15) 31... Nf4+ $17 32. Bxf4 exf4 33. Ng2 {[#]} hxg4 (33... Bg7 $142 $1 34. Qf1 Bxc4 35. bxc4 Kf7 (35... f5 36. gxf5 Kf8 37. h4 $14)) 34. hxg4 Rh2 35. Rxh2 Qxh2 36. Qf1 {White is weak on the dark squares} Rh7 37. Nd2 (37. Qf2 $142) 37... c6 {Black has more active pieces.} 38. Qf2 b5 39. axb5 cxb5 40. Ra1 Ra7 41. b4 $2 {[%mdl 8192] White does not recover from this.} cxb4 $1 $19 {Black is clearly winning.} 42. cxb4 Bxb4 {[#] ...Rc7 is the strong threat.} 43. Nf1 Qh7 44. Qb6 Qd7 {Threatens to win with ...Rc7.} 45. Qb8+ Bf8 {White must now prevent ...Qd4.} 46. Rc1 Rb7 47. Qa8 Rc7 48. Rxc7 Qxc7 49. Qe8 Bf7 50. Qa8 {Weighted Error Value: White=0.56/Black=0.16 (very precise) .  Loses game:     	White=1     	---        Mistake:       	White=5     	Black=3      Inaccurate:     	White=1     	Black=2      OK:         	White=11    	Black=14     Best:        	White=4     	Black=1      Strong:       	---       	Black=1} 0-1

[Event "45th FIDE Olympiad 2024"]
[Site "Budapest"]
[Date "2024.09.11"]
[Round "1.119"]
[White "Olsen, Filip Boe"]
[Black "Jamal, Hamid Harmon Gulamo"]
[Result "1-0"]
[ECO "E71"]
[WhiteElo "2441"]
[BlackElo "1959"]
[Annotator "TA"]
[PlyCount "79"]
[EventDate "2024.09.05"]
[EventType "team-tourn"]
[EventCountry "HUN"]
[SourceTitle "playchess.com"]
[Source "ChessBase"]
[SourceQuality "1"]
[WhiteTeam "Denmark"]
[BlackTeam "Mozambique"]
[WhiteTeamCountry "DEN"]
[BlackTeamCountry "MOZ"]
[TimeControl "40/5400+30:1800+30"]

{[%evp 13,79,39,37,41,61,56,51,56,56,61,47,44,58,41,52,43,81,59,66,62,76,61,113,98,101,109,178,175,179,148,213,227,232,252,225,235,432,367,325,287,657,642,579,352,350,337,359,342,375,371,463,453,791,801,762,746,753,752,752,52,743,743,960,937,999,900,853,866]} 1. d4 Nf6 2. c4 g6 3. Nc3 Bg7 4. e4 d6 5. h3 O-O 6. Be3 e5 7. d5 a5 8. g4 Na6 9. Nge2 Nd7 10. Qd2 {White is slightly better.} Ndc5 11. Ng3 c6 12. Be2 cxd5 13. cxd5 Bd7 14. h4 Rb8 15. Nb5 {[%cal Bc3b5,Bb5a3,Ba3c4,Bc4a5][%mdl 32]} Qb6 16. Na3 Qb4 {[#]} 17. Nc4 $1 Qxd2+ (17... b5 $14 18. Nxa5 (18. Nxd6 Rb6 $11) 18... Qa4) 18. Kxd2 $16 b5 19. Nxa5 f5 {[#]} (19... Rfc8 $16) 20. gxf5 $1 $18 gxf5 21. exf5 e4 (21... Nb4 $16) 22. Rhg1 {Hoping for Nh5.} Kh8 23. Nc6 {Dodges Nb4} Bxc6 24. dxc6 {[%cal Bd5c6,Bc6c7][%mdl 32]} d5 $2 (24... Be5 {was worth a try.} 25. f4 exf3) 25. Bf4 Rb6 {[%cal Bb8b6,Bb6h6,Bh6c6,Bc6c7][%mdl 32]} 26. c7 d4 $2 (26... Rc8 27. Rac1 Bxb2) 27. Nh5 Bh6 28. Bxh6 Rxh6 29. Rac1 d3 30. Bg4 Rc6 31. f6 (31. f3 Rxc7 32. f6 (32. fxe4 Nxe4+ 33. Ke3 Re7 $11) 32... Re8 $18) 31... Rxc7 32. Bf5 {Black must now prevent Rg7.} b4 (32... Nb7 $142 33. Rxc7 (33. Bxe4 Nd6 $18) 33... Nxc7 34. Bxe4 Nd6 35. Bxd3 (35. Kxd3 Rd8 $18) 35... Nce8) 33. Rg7 Rcf7 34. Rc4 (34. Bxh7 Rxf6 35. Nxf6 Kxg7 36. Nxe4 Nd7 $16) 34... Rxf6 35. Rxh7+ (35. Bxe4 Rxf2+ 36. Kd1 Rf1+ (36... Rxb2 37. Rxh7+ Kg8 38. Rg7+ Kh8 39. Rh7+ Kg8 40. Rg7+ Kh8 41. Rh7+ $11) 37. Kd2 R8f2+ 38. Ke3 Re2+ (38... Rxb2 $2 39. Bxd3 Re1+ 40. Kf3 $18) 39. Kd4 Rxe4+ 40. Kd5 d2 (40... Rf5+ $2 41. Kc6 $19) 41. Kc6 d1=Q (41... d1=B $2 42. Rxe4 Nxe4 43. Ra7 $19) (41... Rxc4 42. Re7 $19) 42. Rxe4 Nxe4 43. Rd7 Nb8+ (43... Qxh5 44. Rd8+ Kg7 45. Rd7+ Kh6 46. Rd6+ Nxd6 47. Kxd6 Qc5+ 48. Ke6 Re1+ 49. Kf7 Qh5+ 50. Kg8 Qe8#) 44. Kb6 Nxd7+ (44... Qxd7 45. Ng7 Rf6+ 46. Ne6 Rxe6+ 47. Ka5 Ra6+ 48. Kxb4 Qa4#) 45. Kc6 Qd6+ (45... Qxh5 46. Kb7 Qc5 47. a4 Nd6+ 48. Ka8 Rf8#) 46. Kb5 Qc5+ 47. Ka4 Nb6+ 48. Kb3 Rf3#) 35... Kg8 36. Nxf6+ Rxf6 {Loses the game.} 37. Rh5 {White is clearly winning.} ({Not} 37. Bxe4 Nxe4+ (37... Rxf2+ $2 38. Ke3 $19) 38. Rxe4 Kxh7 39. Re7+ Kh8 40. Kxd3 b3 $11 (40... Rxf2 41. Ra7 $11)) 37... Kf8 38. Rd4 Rf7 39. Rh8+ Ke7 40. Rh7 {Weighted Error Value: White=0.25 (precise) /Black=0.58.  Mistake:       	---       	Black=6      Inaccurate:     	---       	Black=1      OK:         	White=10    	Black=9      Best:        	White=4     	Black=2      Strong:       	White=1     	---} (40. Bxe4 Rxf2+ 41. Ke3 Re2+ 42. Kf3 Nxe4 $11) 1-0

[Event "45th FIDE Olympiad 2024"]
[Site "Budapest"]
[Date "2024.09.11"]
[Round "1.120"]
[White "Joao, Farisse"]
[Black "Ramsdal, Jens Albert"]
[Result "1-0"]
[ECO "D40"]
[WhiteElo "1851"]
[BlackElo "2328"]
[Annotator "TA"]
[PlyCount "119"]
[EventDate "2024.09.05"]
[EventType "team-tourn"]
[EventCountry "HUN"]
[SourceTitle "playchess.com"]
[Source "ChessBase"]
[SourceQuality "1"]
[WhiteTeam "Mozambique"]
[BlackTeam "Denmark"]
[WhiteTeamCountry "MOZ"]
[BlackTeamCountry "DEN"]
[TimeControl "40/5400+30:1800+30"]

{[%evp 9,119,12,3,0,-14,-38,-33,-33,-28,-22,-27,-68,-68,-70,-55,-62,-67,-64,-61,-60,-58,-51,-37,-35,-38,-28,-24,-29,-24,-78,-59,-81,-84,-71,-77,-89,-67,-92,-93,-95,-91,-69,-72,-89,-45,-47,-54,-45,-44,-57,-36,-64,-27,-17,-24,-42,-23,-33,0,-80,-65,-72,-16,-72,-73,-73,-72,-72,-72,-72,-72,-72,-72,-72,0,-72,0,0,0,0,0,0,77,0,0,0,0,0,0,-72,0,0,1449,50,31,8,22,46,225,60,326,318,710,710,5152,5143,29985,29986,29988,29989,29991,29992]} 1. c4 Nf6 2. Nf3 e6 3. Nc3 d5 4. d4 c5 5. e3 a6 6. b3 cxd4 7. exd4 Bb4 8. Bd2 {Black is slightly better.} dxc4 9. bxc4 O-O 10. Qb3 Ba5 11. Bd3 {[#]} e5 $1 12. Ne4 Nxe4 (12... exd4 $6 13. Nxf6+ gxf6 14. O-O $14) 13. Bxe4 Bxd2+ 14. Nxd2 Qxd4 15. Rd1 {[%cal Oe1g1]} Nd7 16. O-O {[%cal Oe4d5]} Nf6 17. Rfe1 Qc5 18. Bd5 Bg4 $36 {[%mdl 2048] Black has some pressure.} 19. Rc1 (19. Rb1 $11) 19... Rad8 $17 {[%cal Rf6d5]} 20. Qg3 {[%cal Od2b3]} Qc7 (20... Nxd5 {is more complex.} 21. Ne4 Qb6 22. cxd5 Rxd5 23. Qxg4 f5) 21. Nf1 Rfe8 22. Ne3 Bc8 23. Qh4 Qe7 24. Qg3 Nh5 25. Qf3 Nf4 26. Rcd1 {Repels Nd3} b6 27. Bc6 Rxd1 28. Rxd1 Rd8 29. Nd5 $1 Nxd5 30. cxd5 Qd6 31. Rc1 g6 32. Qe3 b5 33. h4 {[%cal Oh4h5]} Kg7 34. Qb6 (34. h5 $1 $11) 34... h5 35. Re1 {[%cal Oe1e5]} Re8 (35... Rd7 $1 $17) 36. f4 (36. Qa5 $11 {remains equal.} Re7 37. a4) 36... f6 $1 (36... exf4 $2 37. Qd4+ $18 (37. Rxe8 Qb4 $18) (37. Rxe8 Qb4 $18)) 37. Qa7+ Re7 38. fxe5 fxe5 39. Qe3 Bf5 40. Rf1 Rf7 (40... e4 {feels hotter.} 41. a3 Rc7 42. Rc1 Qe5) 41. Re1 Re7 42. Rf1 $1 Bd7 (42... Kh7 $17) 43. Qf2 $1 $11 Kh7 (43... Bf5 44. Qg3 Be4 45. Rd1 $17) 44. Qf8 Bf5 45. Be8 {Black must now prevent Bf7.} Qb6+ (45... Qc7 $11) 46. Kh1 (46. Kh2 $16 Rg7 (46... Qd6 $2 47. Bf7 $18) 47. Rxf5 gxf5 48. Bd7 (48. Qxf5+ Kg8 $11) 48... Rxd7 (48... Qg6 $2 49. Bxf5 a5 50. Bxg6+ $18) 49. Qxf5+ Kg8 50. Qxd7) 46... Rg7 47. d6 Qd4 48. Qf6 Qg4 49. Bf7 {[#]} (49. Qxe5 $11 {keeps the balance.} Qxh4+ 50. Kg1) 49... Be4 (49... e4 $1 $17 50. Bd5 e3) 50. Rf2 $1 {Dancing on a razor blade.} Bd5 {[%mdl 8192] Prevents Be6.} 51. Be8 $2 (51. Bxd5 $18 {[%cal Od5e6] Be6! is the strong threat.} Qd1+ 52. Kh2 Qxd5 53. Rc2) 51... Be6 $1 $14 52. Qxe5 {aiming for Rf4.} Qxh4+ 53. Kg1 Qg4 {[#]} ({Black should try} 53... Bf5 $1 $14) 54. Rf8 $2 (54. Rf4 $1 $18 {[%cal Rf4g4]} Qd1+ 55. Kh2) 54... h4 $2 {[%mdl 8192]} (54... Bf5 $1 $14) 55. Rf4 $18 Qd1+ (55... Qg3 56. Qe4 Kh6 57. Rxh4+ Kg5) 56. Kh2 g5 57. Rd4 Qf1 58. Qxe6 {White mates.} Qf2 59. Qe4+ Kh6 60. d7 {Weighted Error Value: White=0.28 (precise) /Black=0.35.  Loses game:     	---       	Black=3      Missed win:     	White=2     	---        Mistake:       	White=5     	Black=5      Inaccurate:     	White=2     	Black=4      OK:         	White=15    	Black=18     Best:        	White=4     	Black=4      Strong:       	White=4     	Black=2} 1-0

[Event "45th FIDE Olympiad 2024"]
[Site "Budapest"]
[Date "2024.09.11"]
[Round "1.121"]
[White "Cogan, Nicolas"]
[Black "Dragnev, Valentin"]
[Result "0-1"]
[ECO "A49"]
[WhiteElo "2112"]
[BlackElo "2556"]
[Annotator "TA"]
[PlyCount "66"]
[EventDate "2024.09.05"]
[EventType "team-tourn"]
[EventCountry "HUN"]
[SourceTitle "playchess.com"]
[Source "ChessBase"]
[SourceQuality "1"]
[WhiteTeam "Cote d/^Ivoire"]
[BlackTeam "Austria"]
[BlackTeamCountry "AUT"]
[TimeControl "40/5400+30:1800+30"]

{[%evp 10,66,39,16,22,0,0,10,0,-18,0,-32,-35,-62,-48,-79,-70,-67,-64,-93,-88,-103,-75,-98,-94,-105,-89,-157,-121,-126,-122,-110,-105,-106,-65,-128,-122,-126,-139,-125,-129,-127,-143,-214,-204,-527,-523,-565,-554,-576,-560,-559,-545,-683,-683,-654,-597,-586,-586]} 1. d4 Nf6 2. Nf3 g6 3. g3 Bg7 4. Bg2 O-O 5. O-O d6 6. a4 Nc6 7. Nc3 e5 8. dxe5 dxe5 {The position is equal.} 9. Be3 Bf5 10. Bc5 Re8 11. Nd2 e4 12. Nc4 Nd7 13. Be3 Be6 {[#] Strongly threatening ...Bxc3.} 14. Nd2 f5 15. f3 Nde5 16. Kh1 exf3 17. exf3 Qe7 18. Qe2 ({White should try} 18. Re1) 18... Rad8 19. Qf2 b6 20. h3 Na5 {[%cal Bc6a5,Ba5c4,Bc4b2][%mdl 32]} 21. Rad1 Qb4 22. f4 (22. Nb5 $1 $15) 22... Nec4 $17 {Black is much more active.} (22... Qxb2 23. Nb5 Nf7 24. Nxc7 $16 (24. Nxa7 Bd5 $17)) 23. Nxc4 Nxc4 24. Nd5 Bxd5 (24... Qxb2 $2 {perishes.} 25. Nxc7 (25. Bc1 Qa2 $18) 25... Nxe3 26. Rxd8 Rxd8 27. Nxe6 Nxf1 28. Nxd8 Nxg3+ 29. Qxg3 $18) (24... Qxa4 $2 25. b3 (25. Nxc7 Nxe3 26. Rxd8 Rxd8 $11) 25... Qa2 26. Nxc7 (26. bxc4 Qxc4 $18) 26... Nxe3 27. Qxe3 $18) 25. Rxd5 Nxb2 26. Rb1 (26. a5 $17) 26... Qxa4 $19 {Hoping for ...Qa2.} 27. g4 $2 (27. Kh2) 27... Qa2 {[%csl LRb1,LRd5] Black is clearly winning.} 28. Qf1 Rxd5 29. Ra1 {[#]} Rxe3 30. Rxa2 Rd1 31. Qxd1 Nxd1 32. Rxa7 Re1+ 33. Kh2 Re2 {Weighted Error Value: White=0.42/Black=0.10 (very precise) .  Mistake:       	White=4     	---        Inaccurate:     	White=4     	Black=1      OK:         	White=8     	Black=13     Best:        	White=2     	Black=2} 0-1

[Event "45th FIDE Olympiad 2024"]
[Site "Budapest"]
[Date "2024.09.11"]
[Round "1.122"]
[White "Horvath, Dominik"]
[Black "De Gondo, Simplice Armel"]
[Result "1-0"]
[ECO "B22"]
[WhiteElo "2559"]
[BlackElo "2045"]
[Annotator "TA"]
[PlyCount "67"]
[EventDate "2024.09.05"]
[EventType "team-tourn"]
[EventCountry "HUN"]
[SourceTitle "playchess.com"]
[Source "ChessBase"]
[SourceQuality "1"]
[WhiteTeam "Austria"]
[BlackTeam "Cote d/^Ivoire"]
[WhiteTeamCountry "AUT"]
[TimeControl "40/5400+30:1800+30"]

{[%evp 9,67,22,30,25,25,12,26,37,62,58,76,77,69,61,75,51,83,87,81,76,72,79,59,62,82,78,79,56,62,37,100,104,100,87,163,125,170,168,162,175,295,233,343,335,378,345,302,156,306,262,651,642,745,734,1333,1340,1336,1305,2190,2185]} 1. e4 c5 {[%cal Bc7c5,Bc5c4][%mdl 32]} 2. c3 Nf6 3. e5 Nd5 4. Bc4 Nb6 5. Bb3 c4 6. Bc2 Nc6 7. Qe2 Qc7 8. Nf3 {White has an edge.} e6 9. b3 cxb3 10. axb3 d6 11. exd6 {White is more active.} Bxd6 12. d4 Bd7 13. O-O Nd5 14. c4 Ncb4 15. Be4 Nf6 16. Nc3 O-O 17. Bb1 Bc6 18. Bg5 {[#] Threatens to win with Bxf6.} (18. Ne5 {simplifies} Bxe5 19. Qxe5 Qxe5 20. dxe5 Nd7 21. f4) 18... Rfe8 19. Ne5 h6 (19... Bxe5 $14 20. dxe5 Nd7) 20. Bxf6 gxf6 21. Nxc6 Nxc6 (21... bxc6 $16 22. Ne4 Be7) 22. Ne4 Be7 {[%cal Of6f5]} (22... Bxh2+ $2 {too greedy.} 23. Kh1 Bf4 24. Nxf6+ Kf8 25. d5 $18 (25. Nxe8 Rxe8 26. Rd1 e5 $18)) 23. Qg4+ Kh8 {[%cal Of6f5]} 24. Qh3 $36 {[%mdl 2048] White is in control.} Kg7 (24... Qf4 {was called for.}) 25. Ng3 Rh8 {Black is weak on the light squares} (25... f5 $142) 26. d5 $18 Nd8 27. Re1 Kf8 28. dxe6 (28. Nh5 $18) 28... fxe6 (28... Nxe6 $16 29. Be4 Bb4) 29. Bg6 {[%cal Bb1g6,Bg6f5,Bf5e6][%mdl 32] [#] aiming for Rxe6.} Qb6 (29... Bb4 30. Re4 Rg8) 30. Rad1 {White is clearly winning.} Rc8 31. Nh5 Rg8 32. Nf4 {[%csl LRe6,LRh6]} Kg7 33. Bf5 Rc7 34. Bxe6 {Weighted Error Value: White=0.17 (very precise) /Black=0.58.  Mistake:       	White=1     	Black=6      Inaccurate:     	---       	Black=2      OK:         	White=9     	Black=5      Best:        	---       	Black=1} 1-0

[Event "45th FIDE Olympiad 2024"]
[Site "Budapest"]
[Date "2024.09.11"]
[Round "1.123"]
[White "Manan, Yoboue Hermann"]
[Black "Blohberger, Felix"]
[Result "0-1"]
[ECO "B51"]
[WhiteElo "2030"]
[BlackElo "2520"]
[Annotator "TA"]
[PlyCount "48"]
[EventDate "2024.09.05"]
[EventType "team-tourn"]
[EventCountry "HUN"]
[SourceTitle "playchess.com"]
[Source "ChessBase"]
[SourceQuality "1"]
[WhiteTeam "Cote d/^Ivoire"]
[BlackTeam "Austria"]
[BlackTeamCountry "AUT"]
[TimeControl "40/5400+30:1800+30"]

{[%evp 18,48,18,9,19,0,0,-15,0,0,0,0,-5,-61,-55,-138,-137,-239,-236,-363,-352,-367,-347,-495,-477,-466,-472,-587,-597,-643,-610,-1261,-1238]} 1. e4 c5 2. Nf3 d6 3. Bb5+ Nd7 4. O-O a6 5. Bxd7+ Bxd7 6. d4 cxd4 7. Qxd4 e5 8. Qd3 h6 9. Nc3 Nf6 10. a4 Rc8 11. Be3 Be7 12. a5 Qc7 {The position is equal.} 13. Nd2 O-O 14. Bb6 Qc6 15. Rfc1 (15. Rfd1 $11) 15... Be6 $15 16. Ne2 (16. Re1 $15) 16... d5 $17 {Black is more active.} 17. exd5 (17. Nc3 $17) 17... Nxd5 $19 18. Qg3 (18. Nc3 $142) 18... Nxb6 19. axb6 Bg5 {This pair of bishops is nice.} ({Don't take} 19... Qxb6 20. Qe3 Qxe3 (20... Qxb2 $2 21. Nf3 $19) 21. fxe3 $19) 20. Nf3 (20. f4 {was called for.} exf4 (20... Qxb6+ $2 21. Qf2 $19) 21. Qf2) 20... Bxc1 {Black is clearly winning.} ({Not} 20... Qxb6 21. Nxg5 hxg5 22. Qxe5 $15) 21. Rxc1 f6 22. Nh4 Qxb6 23. b3 Rfd8 24. Ng6 {[#] Inhibits Rxc2.} Rxc2 $3 {[%mdl 512] White got outplayed after the opening.   Weighted Error Value: White=0.92/Black=0.02 (flawless) .  Mistake:       	White=5     	---        Inaccurate:     	White=1     	---        OK:         	White=1     	Black=7      Best:        	---       	Black=2} 0-1